fUST/lending_fUST_20250228
["ID","MTS","AMOUNT","RATE_DAILY","PERIOD"]
[354770375,1740676246407,-500.0,0.00049315,120]
[354770376,1740676246416,-255.12916363,0.00049315,120]
[354770377,1740676246425,-3046.74,0.00049315,120]
[354770378,1740676246434,-500.0,0.00049315,120]
[354770379,1740676246443,-500.89193196,0.00049315,120]
[354770380,1740676246453,-3536.68,0.00049315,120]
[354770381,1740676246462,-500.0,0.00049315,120]
[354770382,1740676246471,-500.0,0.00049315,120]
[354770383,1740676246480,-500.0,0.00049315,120]
[354770384,1740676246489,-500.0,0.00049315,120]
[354770385,1740676246499,-500.0,0.00049315,120]
[354770386,1740676246508,-500.0,0.00049315,120]
[354770387,1740676246518,-500.0,0.00049315,120]
[354770388,1740676246527,-11319.05,0.00049315,6]
[354770389,1740676246537,-501.77666782,0.00049315,120]
[354770390,1740676246547,-1000.0,0.00049315,2]
[354770392,1740676246556,-500.0,0.00049315,120]
[354770393,1740676246565,-500.0,0.00049315,120]
[354770394,1740676246574,-500.0,0.00049315,120]
[354770395,1740676246584,-500.0,0.00049315,120]
[354770396,1740676246594,-500.98655484,0.00049315,120]
[354770397,1740676246603,-500.0,0.00049315,120]
[354770398,1740676246613,-633.79,0.00049315,120]
[354770399,1740676246623,-500.0,0.00049315,120]
[354770400,1740676246632,-684.4,0.00049315,120]
[354770401,1740676246642,-500.0,0.00049315,120]
[354770402,1740676246651,-508.44057828,0.00049315,120]
[354770403,1740676246661,-7465.43,0.00049315,120]
[354770404,1740676246671,-151.0,0.00049315,120]
[354770405,1740676246681,-151.0,0.00049315,120]
[354770406,1740676246691,-151.0,0.00049315,120]
[354770407,1740676246700,-500.0,0.00049315,120]
[354770408,1740676246710,-500.0,0.00049315,120]
[354770409,1740676246719,-500.0,0.00049315,120]
[354770410,1740676246728,-502.70657178,0.00049315,120]
[354770411,1740676246737,-500.0,0.00049315,120]
[354770412,1740676246746,-1266.16,0.00049315,120]
[354770413,1740676246756,-500.0,0.00049315,120]
[354770414,1740676246765,-500.76156608,0.00049315,120]
[354770415,1740676246774,-500.0,0.00049315,120]
[354770416,1740676246784,-1000.0,0.00049315,60]
[354770417,1740676246793,-500.0,0.00049315,120]
[354770418,1740676246802,-1086.99,0.00049315,120]
[354770419,1740676246811,-500.0,0.00049315,120]
[354770420,1740676246820,-500.0,0.00049315,120]
[354770421,1740676246830,-500.0,0.00049315,120]
[354770422,1740676246841,-500.0,0.00049315,120]
[354770423,1740676246851,-1000.0,0.00049315,120]
[354770424,1740676246860,-500.0,0.00049315,120]
[354770425,1740676246871,-500.0,0.00049315,120]
[354770426,1740676246880,-500.0,0.00049315,120]
[354770427,1740676246894,-500.0,0.00049315,120]
[354770428,1740676246904,-500.0,0.00049315,120]
[354770429,1740676246913,-266.99326494,0.00049315,120]
[354770430,1740676246922,-500.0,0.00049315,120]
[354770431,1740676246932,-500.0,0.00049315,120]
[354770432,1740676246941,-500.0,0.00049315,120]
[354770433,1740676246951,-342.87776324,0.00049315,120]
[354770434,1740676246960,-500.0,0.00049315,120]
[354770435,1740676246973,-500.0,0.00049315,45]
[354770436,1740676246983,-500.0,0.00049315,120]
[354770437,1740676246992,-7062.85,0.00049315,120]
[354770438,1740676247002,-500.0,0.00049315,120]
[354770439,1740676247011,-160.44226308,0.00049315,120]
[354770440,1740676247020,-886.43,0.00049315,120]
[354770441,1740676247029,-500.0,0.00049315,120]
[354770442,1740676247038,-500.0,0.00049315,120]
[354770443,1740676247047,-500.0,0.00049315,120]
[354770444,1740676247057,-500.0,0.00049315,120]
[354770445,1740676247066,-500.0,0.00049315,120]
[354770446,1740676247076,-500.0,0.00049315,120]
[354770447,1740676247085,-500.0,0.00049315,120]
[354770448,1740676247095,-500.0,0.00049315,120]
[354770449,1740676247105,-406.36488049,0.00049315,120]
[354770450,1740676247116,-2053.28,0.00049315,120]
[354770451,1740676247126,-500.0,0.00049315,120]
[354770452,1740676247135,-500.0,0.00049315,120]
[354770453,1740676247144,-500.0,0.00049315,120]
[354770454,1740676247154,-1569.68,0.00049315,120]
[354770455,1740676247163,-500.0,0.00049315,120]
[354770456,1740676247172,-500.0,0.00049315,120]
[354770457,1740676247182,-651.51,0.00049315,120]
[354770458,1740676247191,-500.0,0.00049315,120]
[354770459,1740676247200,-597.63873354,0.00049315,120]
[354770460,1740676247209,-500.0,0.00049315,120]
[354770461,1740676247219,-500.0,0.00049315,120]
[354770462,1740676247228,-500.0,0.00049315,120]
[354770463,1740676247237,-500.0,0.00049315,120]
[354770464,1740676247247,-500.0,0.00049315,120]
[354770465,1740676247256,-500.0,0.00049315,120]
[354770466,1740676247265,-500.0,0.00049315,120]
[354770467,1740676247274,-500.0,0.00049315,120]
[354770468,1740676247283,-618.52948978,0.00049315,120]
[354770469,1740676247293,-540.15,0.00049315,120]
[354770470,1740676247301,-500.0,0.00049315,120]
[354770471,1740676247311,-500.0,0.00049315,120]
[354770472,1740676247320,-500.0,0.00049315,120]
[354770473,1740676247329,-500.0,0.00049315,120]
[354770474,1740676247338,-500.0,0.00049315,120]
[354770475,1740676247347,-161.91501548,0.00049315,120]
[354770476,1740676247357,-4126.54,0.00049315,120]
[354770477,1740676247367,-500.0,0.00049315,120]
[354770478,1740676247376,-500.0,0.00049315,120]
[354770479,1740676247386,-500.0,0.00049315,120]
[354770480,1740676247395,-500.0,0.00049315,120]
[354770481,1740676247405,-7728.05,0.00049315,120]
[354770482,1740676247415,-500.0,0.00049315,120]
[354770483,1740676247424,-500.0,0.00049315,120]
[354770484,1740676247435,-500.0,0.00049315,120]
[354770485,1740676247446,-500.0,0.00049315,120]
[354770486,1740676247536,-500.0,0.00049315,120]
[354770487,1740676247546,-500.0,0.00049315,120]
[354770488,1740676247557,-500.0,0.00049315,120]
[354770489,1740676247567,-500.0,0.00049315,120]
[354770490,1740676247577,-500.0,0.00049315,120]
[354770491,1740676247587,-500.0,0.00049315,120]
[354770492,1740676247597,-500.0,0.00049315,120]
[354770493,1740676247606,-590.56376517,0.00049315,120]
[354770494,1740676247616,-500.0,0.00049315,120]
[354770495,1740676247625,-500.0,0.00049315,120]
[354770496,1740676247635,-500.0,0.00049315,120]
[354770497,1740676247644,-500.0,0.00049315,30]
[354770498,1740676247653,-1676.65,0.00049315,120]
[354770499,1740676247663,-500.0,0.00049315,120]
[354770500,1740676247672,-694.87,0.00049315,120]
[354770501,1740676247681,-500.0,0.00049315,120]
[354770502,1740676247690,-500.0,0.00049315,120]
[354770503,1740676247701,-500.0,0.00049315,120]
[354770504,1740676247711,-500.0,0.00049315,120]
[354770505,1740676247720,-500.0,0.00049315,120]
[354770506,1740676247730,-500.0,0.00049315,120]
[354770507,1740676247739,-500.0,0.00049315,21]
[354770508,1740676247750,-500.0,0.00049315,120]
[354770509,1740676247760,-500.0,0.00049315,120]
[354770510,1740676247770,-500.0,0.00049315,120]
[354770511,1740676247779,-500.0,0.00049315,120]
[354770512,1740676247789,-500.0,0.00049315,120]
[354770513,1740676247799,-500.0,0.00049315,120]
[354770514,1740676247808,-501.70601291,0.00049315,120]
[354770515,1740676247818,-500.0,0.00049315,120]
[354770516,1740676247827,-500.0,0.00049315,120]
[354770517,1740676247837,-500.0,0.00049315,120]
[354770518,1740676247846,-500.0,0.00049315,120]
[354770519,1740676247856,-3890.68,0.00049315,120]
[354770520,1740676247865,-500.0,0.00049315,120]
[354770521,1740676247874,-500.0,0.00049315,120]
[354770522,1740676247883,-500.0,0.00049315,120]
[354770523,1740676247895,-1829.31,0.00049315,120]
[354770524,1740676247904,-500.0,0.00049315,2]
[354770525,1740676247913,-255.73516113,0.00049373,5]
[354770526,1740676247923,-500.0,0.00049373,10]
[354770527,1740676247932,-500.0,0.00049373,7]
[354770528,1740676247941,-635.90818156,0.00049373,10]
[354770529,1740676247950,-500.0,0.00049373,7]
[354770530,1740676247959,-500.446861,0.00049373,10]
[354770531,1740676247969,-500.0,0.00049373,10]
[354770532,1740676247979,-506.0603965,0.00049373,10]
[354770533,1740676247988,-500.0,0.00049373,10]
[354770534,1740676247997,-500.0,0.00049373,10]
[354770535,1740676248007,-500.0,0.00049373,10]
[354770536,1740676248016,-500.0,0.00049373,10]
[354770537,1740676248025,-500.0,0.00049373,7]
[354770538,1740676248035,-500.0,0.00049373,10]
[354770539,1740676248044,-179.58695001,0.00049408,40]
[354770540,1740676248054,-500.0,0.00049474,120]
[354770541,1740676248064,-289.89,0.00049489,120]
[354770542,1740676248073,-169.10289132,0.00049489,120]
[354770543,1740676248082,-169.10289132,0.00049489,120]
[354770544,1740676248092,-169.10289132,0.00049489,120]
[354770545,1740676248101,-196.27,0.00049489,120]
[354770546,1740676248111,-152.65711493,0.00049489,120]
[354770547,1740676248121,-152.65711493,0.00049489,120]
[354770548,1740676248130,-500.0,0.000495,120]
[354770549,1740676248138,-500.0,0.000495,120]
[354770550,1740676248148,-500.0,0.000495,120]
[354770551,1740676248157,-500.0,0.000495,120]
[354770552,1740676248166,-500.0,0.000495,120]
[354770553,1740676248176,-151.0,0.000495,30]
[354770554,1740676248185,-151.0,0.000495,21]
[354770555,1740676248195,-151.0,0.000495,25]
[354770556,1740676248204,-151.0,0.000495,26]
[354770557,1740676248213,-167.89801726,0.000495,120]
[354770558,1740676248222,-167.89801726,0.000495,120]
[354770559,1740676248231,-167.89,0.000495,120]
[354770560,1740676248241,-167.89801726,0.000495,120]
[354770561,1740676248250,-167.89801726,0.000495,120]
[354770562,1740676248260,-167.89801726,0.000495,120]
[354770563,1740676248269,-167.89801726,0.000495,120]
[354770564,1740676248279,-167.89801726,0.000495,120]
[354770565,1740676248288,-167.89801726,0.000495,120]
[354770566,1740676248298,-489.22532775,0.00049573,10]
[354770567,1740676248307,-515.97512731,0.00049573,10]
[354770568,1740676248317,-500.0,0.00049573,10]
[354770569,1740676248326,-500.0207089,0.00049573,10]
[354770570,1740676248335,-500.0,0.00049573,10]
[354770571,1740676248345,-500.0,0.00049573,10]
[354770572,1740676248354,-501.07459073,0.00049573,10]
[354770573,1740676248365,-500.0,0.00049573,10]
[354770574,1740676248374,-500.18493728,0.00049573,2]
[354770575,1740676248383,-500.0,0.00049573,10]
[354770576,1740676248393,-500.0,0.00049589,120]
[354770577,1740676248403,-500.0,0.00049589,120]
[354770578,1740676248412,-500.0,0.00049589,120]
[354770579,1740676248424,-500.0,0.00049589,120]
[354770580,1740676248433,-500.0,0.00049589,120]
[354770581,1740676248443,-500.0,0.00049589,120]
[354770582,1740676248452,-500.0,0.00049589,120]
[354770583,1740676248462,-500.0,0.00049589,120]
[354770584,1740676248472,-500.0,0.00049589,120]
[354770585,1740676248481,-500.0,0.00049589,120]
[354770586,1740676248490,-500.0,0.00049589,120]
[354770587,1740676248500,-500.0,0.00049589,120]
[354770588,1740676248509,-255.54545043,0.00049589,120]
[354770589,1740676248519,-609.6,0.00049589,120]
[354770590,1740676248528,-500.0,0.00049589,120]
[354770591,1740676248537,-500.0,0.00049589,120]
[354770592,1740676248547,-244.10381002,0.00049589,120]
[354770593,1740676248556,-500.0,0.00049589,120]
[354770594,1740676248565,-500.0,0.00049589,120]
[354770595,1740676248575,-500.0,0.00049589,120]
[354770596,1740676248585,-500.0,0.00049589,120]
[354770597,1740676248595,-500.0,0.00049589,120]
[354770598,1740676248605,-500.0,0.00049589,120]
[354770599,1740676248615,-504.49551577,0.00049589,120]
[354770600,1740676248625,-500.0,0.00049589,120]
[354770601,1740676248635,-506.62707255,0.00049589,120]
[354770602,1740676248646,-535.62,0.00049589,120]
[354770603,1740676248656,-500.0,0.00049589,120]
[354770604,1740676248666,-500.0,0.00049589,120]
[354770605,1740676248676,-500.0,0.00049589,120]
[354770606,1740676248686,-500.0,0.00049589,120]
[354770607,1740676248696,-500.0,0.00049589,120]
[354770608,1740676248706,-500.0,0.00049589,120]
[354770609,1740676248715,-500.0,0.00049589,120]
[354770610,1740676248725,-500.0,0.00049589,120]
[354770611,1740676248735,-500.0,0.00049589,120]
[354770612,1740676248744,-500.0,0.00049589,120]
[354770613,1740676248754,-303.02585631,0.00049589,120]
[354770614,1740676248764,-500.0,0.00049589,120]
[354770615,1740676248774,-500.0,0.00049589,120]
[354770616,1740676248784,-471.77891035,0.00049589,120]
[354770617,1740676248793,-500.0,0.00049589,120]
[354770618,1740676248803,-500.0,0.00049589,120]
[354770619,1740676248813,-500.0,0.00049589,120]
[354770620,1740676248822,-500.0,0.00049589,120]
[354770621,1740676248833,-500.0,0.00049589,120]
[354770622,1740676248842,-500.0,0.00049589,120]
[354770623,1740676248852,-500.0,0.00049589,120]
[354770624,1740676248862,-500.0,0.00049589,120]
[354770625,1740676248874,-500.0,0.00049589,120]
[354770626,1740676248885,-500.0,0.00049589,120]
[354770627,1740676248900,-500.0,0.00049589,120]
[354770628,1740676248909,-500.0,0.00049589,120]
[354770629,1740676248919,-500.0,0.00049589,120]
[354770630,1740676248929,-500.0,0.00049589,120]
[354770631,1740676248939,-500.0,0.00049589,120]
[354770632,1740676248948,-500.0,0.00049589,120]
[354770633,1740676248958,-500.0,0.00049589,120]
[354770634,1740676248968,-500.0,0.00049589,120]
[354770635,1740676248978,-500.0,0.00049589,120]
[354770636,1740676248988,-650.1,0.00049589,120]
[354770637,1740676248997,-500.0,0.00049589,120]
[354770638,1740676249007,-500.0,0.00049589,120]
[354770639,1740676249016,-1000.0,0.00049589,20]
[354770640,1740676249025,-500.0,0.00049589,120]
[354770641,1740676249112,-600.28096313,0.00049589,120]
[354770642,1740676249123,-500.0,0.00049589,120]
[354770643,1740676249132,-500.0,0.00049589,120]
[354770644,1740676249144,-500.0,0.00049589,120]
[354770645,1740676249153,-500.0,0.00049589,120]
[354770646,1740676249163,-500.0,0.00049589,120]
[354770647,1740676249174,-500.0,0.00049589,120]
[354770648,1740676249184,-500.0,0.00049589,120]
[354770649,1740676249194,-500.0,0.00049589,120]
[354770650,1740676249204,-500.0,0.00049589,120]
[354770651,1740676249215,-500.0,0.00049589,120]
[354770652,1740676249224,-500.0,0.00049589,120]
[354770653,1740676249234,-500.0,0.00049589,120]
[354770654,1740676249244,-500.0,0.00049589,120]
[354770655,1740676249254,-646.03,0.00049589,120]
[354770656,1740676249263,-500.0,0.00049589,120]
[354770657,1740676249272,-516.83079801,0.00049589,120]
[354770658,1740676249282,-500.0,0.00049589,120]
[354770659,1740676249292,-500.0,0.00049589,120]
[354770660,1740676249301,-500.0,0.00049589,120]
[354770661,1740676249312,-500.0,0.00049589,120]
[354770662,1740676249321,-500.0,0.00049589,120]
[354770663,1740676249331,-500.0,0.00049589,120]
[354770664,1740676249341,-500.0,0.00049589,120]
[354770665,1740676249350,-500.0,0.00049589,120]
[354770666,1740676249360,-500.0,0.00049589,120]
[354770667,1740676249370,-500.0,0.00049589,120]
[354770668,1740676249380,-500.0,0.00049589,120]
[354770669,1740676249389,-500.0,0.00049589,120]
[354770670,1740676249399,-500.0,0.00049589,120]
[354770671,1740676249408,-500.0,0.00049589,120]
[354770672,1740676249417,-500.0,0.00049589,120]
[354770673,1740676249426,-500.0,0.00049589,120]
[354770674,1740676249435,-1021.91,0.00049589,120]
[354770675,1740676249445,-500.0,0.00049589,120]
[354770676,1740676249455,-500.0,0.00049589,120]
[354770677,1740676249464,-500.0,0.00049589,120]
[354770678,1740676249474,-500.0,0.00049589,120]
[354770679,1740676249483,-1292.42,0.00049589,120]
[354770680,1740676249493,-500.0,0.00049589,120]
[354770681,1740676249502,-159.39285376,0.00049589,120]
[354770682,1740676249512,-688.96,0.00049589,120]
[354770683,1740676249522,-500.0,0.00049589,120]
[354770684,1740676249532,-264.84377771,0.00049589,120]
[354770685,1740676249541,-500.0,0.00049589,120]
[354770686,1740676249550,-500.0,0.00049589,120]
[354770687,1740676249559,-500.0,0.00049589,120]
[354770688,1740676249569,-500.0,0.00049589,120]
[354770689,1740676249580,-500.0,0.00049589,120]
[354770690,1740676249589,-500.0,0.00049589,120]
[354770691,1740676249599,-876.42,0.00049589,120]
[354770692,1740676249612,-500.0,0.00049589,120]
[354770693,1740676249623,-500.0,0.00049589,120]
[354770694,1740676249633,-500.0,0.00049589,120]
[354770695,1740676249642,-1148.65,0.00049589,120]
[354770696,1740676249652,-500.0,0.00049589,120]
[354770697,1740676249661,-500.0,0.00049589,120]
[354770698,1740676249671,-500.0,0.00049589,120]
[354770699,1740676249680,-500.0,0.00049589,120]
[354770700,1740676249690,-500.0,0.00049589,120]
[354770701,1740676249699,-500.0,0.00049589,120]
[354770702,1740676249709,-282.48156557,0.00049589,120]
[354770703,1740676249719,-500.0,0.00049589,120]
[354770704,1740676249728,-410.76972131,0.00049589,120]
[354770705,1740676249737,-913.55,0.00049589,120]
[354770706,1740676249746,-505.6646325,0.00049589,120]
[354770707,1740676249755,-500.0,0.00049589,120]
[354770708,1740676249765,-500.0,0.00049589,120]
[354770709,1740676249774,-500.0,0.00049589,120]
[354770710,1740676249783,-200.0,0.00049589,7]
[354770711,1740676249792,-298.4884716,0.00049589,120]
[354770712,1740676249802,-500.0,0.00049589,120]
[354770713,1740676249811,-391.28280935,0.00049589,120]
[354770714,1740676249820,-500.0,0.00049589,120]
[354770715,1740676249830,-500.0,0.00049589,120]
[354770716,1740676249840,-500.0,0.00049589,120]
[354770717,1740676249849,-500.0,0.00049589,120]
[354770718,1740676249859,-500.0,0.00049589,120]
[354770719,1740676249869,-500.0,0.00049589,120]
[354770720,1740676249880,-500.0,0.00049589,120]
[354770721,1740676249890,-500.0,0.00049589,120]
[354770722,1740676249902,-500.0,0.00049589,120]
[354770723,1740676249911,-500.0,0.00049589,120]
[354770724,1740676249921,-500.0,0.00049589,120]
[354770725,1740676249930,-500.0,0.00049589,120]
[354770726,1740676249940,-500.0,0.00049589,120]
[354770727,1740676249949,-500.0,0.00049589,120]
[354770728,1740676249959,-500.0,0.00049589,120]
[354770729,1740676249969,-500.0,0.00049589,120]
[354770730,1740676249979,-500.0,0.00049589,120]
[354770731,1740676249988,-500.0,0.00049589,120]
[354770732,1740676249998,-500.0,0.00049589,120]
[354770733,1740676250007,-458.77841142,0.00049589,120]
[354770734,1740676250464,-1036.91286414,0.00049268,10]
[354770735,1740676250477,-391.94826509,0.00049268,10]
[354770736,1740676250489,-423.16002039,0.00049268,10]
[354770737,1740676250504,-16963.31885038,0.00049268,10]
[354770738,1740676250515,-41.22158858,0.00049589,120]
[354770739,1740676250526,-500.0,0.00049589,120]
[354770740,1740676250535,-500.0,0.00049589,120]
[354770741,1740676250545,-510.44290016,0.00049589,120]
[354770742,1740676250554,-500.0,0.00049589,120]
[354770743,1740676250565,-500.0,0.00049589,120]
[354770744,1740676250574,-500.0,0.00049589,120]
[354770745,1740676250583,-635.09,0.00049589,120]
[354770746,1740676250592,-500.0,0.00049589,120]
[354770747,1740676250601,-270.90424181,0.00049589,120]
[354770752,1740677235521,500.0,0.00052617,30]
[354770753,1740677236033,500.0,0.00052617,30]
[354770756,1740677317569,1264.69886397,0.00052617,90]
[354770796,1740677432423,-181.522725,0.00032877,2]
[354770797,1740677432432,-1525.8825844,0.00041993,2]
[354770798,1740677433704,150.0,0.00052617,120]
[354770799,1740677434212,150.0,0.00052617,120]
[354770800,1740677434728,150.0,0.00052617,120]
[354770817,1740677438225,-6833.3830392,0.00041993,2]
[354770819,1740677438236,-1464.40930422,0.00043208,120]
[354770821,1740677438246,-11849.8391129,0.00043308,64]
[354770822,1740677438256,-183.1990025,0.0004374,2]
[354770823,1740677438265,-205.82491632,0.000439,9]
[354770824,1740677438275,-151.0,0.00045,120]
[354770825,1740677438285,-205.82491628,0.00045608,10]
[354770826,1740677438298,-466.30727515,0.00046478,15]
[354770827,1740677438308,-186.0,0.00047,90]
[354770828,1740677438317,-205.82491628,0.00047317,10]
[354770829,1740677438327,-161.291585,0.00048,90]
[354770830,1740677438338,-168.48169,0.00048581,4]
[354770831,1740677438351,-465.06536376,0.00048802,15]
[354770832,1740677438362,-250.17145574,0.0004899,2]
[354770833,1740677438371,-5000.0,0.00049,120]
[354770834,1740677438381,-205.82491628,0.00049025,11]
[354770835,1740677438390,-500.0,0.00049041,10]
[354770836,1740677438400,-9689.69368519,0.00049098,2]
[354770837,1740677438410,-3000.0,0.00049215,2]
[354770838,1740677438420,-5402.30000001,0.00049215,120]
[354770839,1740677438429,-17372.68,0.00049305,10]
[354770840,1740677438439,-14477.24,0.00049305,10]
[354770841,1740677438449,-232.86593616,0.00049314,120]
[354770842,1740677438459,-192.85296475,0.00049314,120]
[354770843,1740677438468,-276.90424825,0.00049314,2]
[354770844,1740677438477,-500.0,0.00049314,2]
[354770845,1740677438487,-18841.75,0.00049314,120]
[354770846,1740677438497,-500.0,0.00049314,120]
[354770847,1740677438507,-500.0,0.00049314,31]
[354770848,1740677438516,-278.3104808,0.00049314,120]
[354770849,1740677438525,-500.0,0.00049314,31]
[354770850,1740677438535,-501.18315596,0.00049314,120]
[354770851,1740677438545,-221.44665832,0.00049314,31]
[354770852,1740677438554,-194.81733656,0.00049314,120]
[354770853,1740677438564,-500.0,0.00049315,120]
[354770854,1740677438745,-500.0,0.00049315,120]
[354770855,1740677438756,-500.0,0.00049315,120]
[354770856,1740677438766,-500.0,0.00049315,120]
[354770857,1740677438776,-500.0,0.00049315,120]
[354770858,1740677438785,-500.0,0.00049315,120]
[354770859,1740677438795,-500.0,0.00049315,120]
[354770860,1740677438804,-151.0,0.00049315,120]
[354770861,1740677438814,-500.0,0.00049315,120]
[354770862,1740677438825,-500.0,0.00049315,120]
[354770863,1740677438834,-500.0,0.00049315,120]
[354770864,1740677438845,-500.0,0.00049315,120]
[354770865,1740677438854,-500.0,0.00049315,120]
[354770866,1740677438864,-500.0,0.00049315,120]
[354770867,1740677438873,-201.27793882,0.00049315,120]
[354770868,1740677438882,-500.0,0.00049315,120]
[354770869,1740677438892,-500.0,0.00049315,120]
[354770870,1740677438901,-500.0,0.00049315,120]
[354770871,1740677438911,-505.97887833,0.00049315,120]
[354770872,1740677438920,-159.39285376,0.00049315,120]
[354770873,1740677438930,-447.39748133,0.00049315,120]
[354770874,1740677438939,-500.0,0.00049315,120]
[354770875,1740677438949,-240.32930766,0.00049315,120]
[354770876,1740677438959,-500.0,0.00049315,120]
[354770877,1740677438968,-500.0,0.00049315,120]
[354770878,1740677438978,-500.0,0.00049315,120]
[354770879,1740677438988,-500.0,0.00049315,120]
[354770880,1740677438999,-510.77186579,0.00049315,120]
[354770881,1740677439008,-500.0,0.00049315,120]
[354770882,1740677439018,-500.0,0.00049315,120]
[354770883,1740677439027,-526.0967835,0.00049315,120]
[354770884,1740677439036,-500.0,0.00049315,120]
[354770885,1740677439045,-500.0,0.00049315,120]
[354770886,1740677439055,-500.0,0.00049315,120]
[354770887,1740677439064,-500.0,0.00049315,120]
[354770888,1740677439073,-500.0,0.00049315,120]
[354770889,1740677439083,-500.0,0.00049315,120]
[354770890,1740677439093,-500.0,0.00049315,120]
[354770891,1740677439102,-500.0,0.00049315,120]
[354770892,1740677439113,-500.0,0.00049315,120]
[354770893,1740677439123,-500.0,0.00049315,120]
[354770894,1740677439133,-500.0,0.00049315,120]
[354770895,1740677439142,-556.55442762,0.00049315,120]
[354770896,1740677439152,-500.0,0.00049315,120]
[354770897,1740677439162,-505.6646325,0.00049315,120]
[354770898,1740677439171,-264.84377771,0.00049315,120]
[354770899,1740677439181,-500.0,0.00049315,120]
[354770900,1740677439191,-500.0,0.00049315,120]
[354770901,1740677439200,-500.0,0.00049315,120]
[354770902,1740677439210,-500.0,0.00049315,120]
[354770903,1740677439219,-298.4884716,0.00049315,120]
[354770904,1740677439229,-500.0,0.00049315,120]
[354770905,1740677439238,-391.28280935,0.00049315,120]
[354770906,1740677439248,-500.0,0.00049315,120]
[354770907,1740677439257,-500.0,0.00049315,120]
[354770908,1740677439267,-500.0,0.00049315,120]
[354770909,1740677439275,-500.0,0.00049315,120]
[354770910,1740677439286,-500.0,0.00049315,120]
[354770911,1740677439298,-500.0,0.00049315,120]
[354770912,1740677439308,-500.0,0.00049315,120]
[354770913,1740677439318,-500.0,0.00049315,120]
[354770914,1740677439327,-500.0,0.00049315,120]
[354770915,1740677439337,-282.48156557,0.00049315,120]
[354770916,1740677439349,-500.0,0.00049315,120]
[354770917,1740677439359,-500.0,0.00049315,120]
[354770918,1740677439369,-293.03795943,0.00049315,120]
[354770919,1740677439381,-508.35568566,0.00049315,120]
[354770920,1740677439390,-500.0,0.00049315,120]
[354770921,1740677439399,-500.0,0.00049315,120]
[354770922,1740677439408,-200.0,0.00049315,7]
[354770923,1740677439418,-500.0,0.00049315,120]
[354770924,1740677439427,-500.0,0.00049315,120]
[354770925,1740677439437,-500.0,0.00049315,120]
[354770926,1740677439448,-500.0,0.00049315,120]
[354770927,1740677439458,-500.0,0.00049315,120]
[354770928,1740677439467,-500.0,0.00049315,120]
[354770929,1740677439477,-500.0,0.00049315,120]
[354770930,1740677439486,-500.0,0.00049315,120]
[354770931,1740677439496,-500.0,0.00049315,120]
[354770932,1740677439505,-500.0,0.00049315,120]
[354770933,1740677439514,-500.0,0.00049315,120]
[354770934,1740677439523,-500.0,0.00049315,120]
[354770935,1740677439533,-500.0,0.00049315,120]
[354770936,1740677439542,-500.0,0.00049315,120]
[354770937,1740677439551,-500.0,0.00049315,120]
[354770938,1740677439561,-500.0,0.00049315,120]